fUST/lending_fUST_20250610
["ID","MTS","AMOUNT","RATE_DAILY","PERIOD"]
[365154920,1749501038973,-460.0,0.00021095,4]
[365154921,1749501038983,-460.0,0.00021095,4]
[365154922,1749501038992,-460.0,0.00021095,4]
[365154923,1749501039002,-460.0,0.00021095,4]
[365154924,1749501039012,-460.0,0.00021095,4]
[365154925,1749501039021,-440.0,0.00021095,4]
[365154926,1749501039030,-460.0,0.00021095,4]
[365154927,1749501039039,-460.0,0.00021095,4]
[365154928,1749501039049,-561.89753536,0.00021095,4]
[365154929,1749501039059,-460.0,0.00021095,4]
[365154930,1749501039068,-440.0,0.00021095,4]
[365154931,1749501039078,-460.0,0.00021095,4]
[365154932,1749501039088,-460.0,0.00021095,4]
[365154933,1749501039098,-450.1771151,0.00021095,4]
[365154934,1749501039107,-390.0,0.00021095,4]
[365154935,1749501039117,-460.0,0.00021095,4]
[365154936,1749501039126,-460.0,0.00021095,4]
[365154937,1749501039135,-219.44302782,0.00021095,4]
[365154938,1749501039145,-460.0,0.00021095,4]
[365154939,1749501039154,-440.0,0.00021095,4]
[365154940,1749501039163,-460.0,0.00021095,4]
[365154941,1749501039174,-400.0,0.00021095,4]
[365154942,1749501039184,-706.41,0.00021095,4]
[365154943,1749501039194,-460.0,0.00021095,4]
[365154944,1749501039203,-460.0,0.00021095,4]
[365154945,1749501039213,-992.4,0.00021095,4]
[365154946,1749501039222,-1071.58,0.00021095,4]
[365154947,1749501039232,-460.0,0.00021095,4]
[365154948,1749501039242,-390.0,0.00021095,4]
[365154949,1749501039252,-460.0,0.00021095,4]
[365154950,1749501039261,-440.0,0.00021095,4]
[365154951,1749501039271,-1603.48,0.00021095,4]
[365154952,1749501039280,-460.0,0.00021095,4]
[365154953,1749501039290,-530.48,0.00021095,4]
[365154954,1749501039300,-521.55,0.00021095,4]
[365154955,1749501039309,-649.36,0.00021095,4]
[365154956,1749501039318,-277.02726689,0.00021095,4]
[365154957,1749501039328,-266.02928671,0.00021095,4]
[365154958,1749501039337,-460.0,0.00021095,4]
[365154959,1749501039347,-460.0,0.00021095,4]
[365154960,1749501039356,-460.0,0.00021095,4]
[365154961,1749501039366,-460.0,0.00021095,4]
[365154962,1749501039380,-460.0,0.00021095,4]
[365154963,1749501039392,-460.0,0.00021095,4]
[365154964,1749501039402,-440.0,0.00021095,4]
[365154965,1749501039411,-440.0,0.00021095,4]
[365154966,1749501039422,-440.0,0.00021095,4]
[365154967,1749501039431,-460.0,0.00021095,4]
[365154968,1749501039442,-430.0,0.00021095,4]
[365154969,1749501039452,-440.0,0.00021095,4]
[365154970,1749501039462,-460.0,0.00021095,4]
[365154971,1749501039473,-440.0,0.00021095,4]
[365154972,1749501039484,-460.0,0.00021095,4]
[365154973,1749501039494,-430.0,0.00021095,4]
[365154974,1749501039505,-460.0,0.00021095,4]
[365154975,1749501039514,-460.0,0.00021095,4]
[365154976,1749501039524,-440.0,0.00021095,4]
[365154977,1749501039534,-625.25,0.00021095,4]
[365154978,1749501039544,-440.0,0.00021095,4]
[365154979,1749501039555,-229.04574517,0.00021095,4]
[365154980,1749501039565,-460.0,0.00021095,4]
[365154981,1749501039574,-460.0,0.00021095,4]
[365154982,1749501039585,-955.51,0.00021095,4]
[365154983,1749501039594,-440.0,0.00021095,4]
[365154984,1749501039604,-338.4479191,0.00021095,4]
[365154985,1749501039613,-460.0,0.00021095,4]
[365154986,1749501039623,-460.0,0.00021095,4]
[365154987,1749501039634,-460.0,0.00021095,4]
[365154988,1749501039643,-430.0,0.00021095,4]
[365154989,1749501039653,-430.0,0.00021095,4]
[365154990,1749501039662,-1345.98,0.00021095,4]
[365154991,1749501039671,-415.83528251,0.00021095,4]
[365154992,1749501039683,-440.0,0.00021095,4]
[365154993,1749501039697,-460.0,0.00021095,4]
[365154994,1749501039711,-446.00547333,0.00021095,4]
[365154995,1749501039725,-460.0,0.00021095,4]
[365154996,1749501039738,-460.0,0.00021095,4]
[365154997,1749501039751,-460.0,0.00021095,4]
[365154998,1749501039762,-460.0,0.00021095,4]
[365154999,1749501039774,-460.0,0.00021095,4]
[365155000,1749501039788,-460.0,0.00021095,4]
[365155001,1749501039800,-2066.19,0.00021095,4]
[365155002,1749501039813,-460.0,0.00021095,4]
[365155003,1749501039825,-460.0,0.00021095,4]
[365155004,1749501039838,-460.0,0.00021095,4]
[365155005,1749501039850,-460.0,0.00021095,4]
[365155006,1749501039863,-460.0,0.00021095,4]
[365155007,1749501039875,-9635.44,0.00021095,4]
[365155008,1749501039889,-460.0,0.00021095,4]
[365155009,1749501039902,-460.0,0.00021095,4]
[365155010,1749501039916,-460.0,0.00021095,4]
[365155011,1749501039928,-1294.16,0.00021095,4]
[365155012,1749501039939,-525.36,0.00021095,4]
[365155013,1749501039951,-715.62,0.00021095,4]
[365155014,1749501039964,-1280.46,0.00021095,4]
[365155015,1749501039976,-380.0,0.00021095,4]
[365155016,1749501039988,-434.35808392,0.00021095,4]
[365155017,1749501039999,-460.0,0.00021095,4]
[365155018,1749501040012,-500.0,0.00021095,4]
[365155019,1749501040024,-500.0,0.00021095,4]
[365155020,1749501040035,-500.0,0.00021095,4]
[365155021,1749501040047,-460.0,0.00021095,4]
[365155022,1749501040060,-460.0,0.00021095,4]
[365155023,1749501040071,-460.0,0.00021095,4]
[365155024,1749501040082,-1425.37,0.00021095,4]
[365155025,1749501040094,-505.75232097,0.00021095,4]
[365155026,1749501040105,-1749.9316987,0.00021176,4]
[365155027,1749501040116,-1749.9316987,0.00021314,5]
[365155028,1749501040128,-460.0,0.00021369,4]
[365155029,1749501040139,-447.73729379,0.00021369,4]
[365155030,1749501040151,-282.19381492,0.00021369,4]
[365155031,1749501040163,-364.15739841,0.00021369,4]
[365155032,1749501040175,-420.0,0.00021369,4]
[365155033,1749501040188,-460.0,0.00021369,4]
[365155034,1749501040200,-597.62410349,0.00021369,4]
[365155035,1749501040212,-460.0,0.00021369,2]
[365155037,1749501040225,-430.0,0.00021369,4]
[365155039,1749501040237,-460.0,0.00021369,4]
[365155041,1749501040247,-420.0,0.00021369,4]
[365155043,1749501040258,-460.0,0.00021369,4]
[365155045,1749501040268,-420.0,0.00021369,4]
[365155047,1749501040277,-460.0,0.00021369,4]
[365155049,1749501040288,-460.0,0.00021369,4]
[365155051,1749501040301,-390.0,0.00021369,4]
[365155054,1749501040313,-400.0,0.00021369,4]
[365155056,1749501040324,-460.0,0.00021369,4]
[365155058,1749501040336,-460.0,0.00021369,4]
[365155060,1749501040346,-460.0,0.00021369,4]
[365155062,1749501040356,-706.41,0.00021369,4]
[365155063,1749501040366,-992.4,0.00021369,4]
[365155064,1749501040376,-1071.58,0.00021369,4]
[365155065,1749501040387,-460.0,0.00021369,4]
[365155066,1749501040398,-460.0,0.00021369,4]
[365155067,1749501040409,-1603.48,0.00021369,4]
[365155068,1749501040421,-410.0,0.00021369,4]
[365155069,1749501040431,-530.48,0.00021369,4]
[365155070,1749501040442,-521.55,0.00021369,4]
[365155071,1749501040452,-649.36,0.00021369,4]
[365155073,1749501040464,-380.0,0.00021369,4]
[365155075,1749501040475,-183.39854976,0.00021369,4]
[365155077,1749501040486,-460.0,0.00021369,4]
[365155078,1749501040497,-460.0,0.00021369,4]
[365155080,1749501040509,-460.0,0.00021369,4]
[365155083,1749501040520,-460.0,0.00021369,4]
[365155085,1749501040533,-440.0,0.00021369,4]
[365155087,1749501040544,-460.0,0.00021369,4]
[365155089,1749501040556,-460.0,0.00021369,4]
[365155091,1749501040567,-460.0,0.00021369,4]
[365155094,1749501040581,-460.0,0.00021369,4]
[365155096,1749501040592,-625.25,0.00021369,4]
[365155098,1749501040603,-300.0,0.00021369,4]
[365155100,1749501040613,-955.51,0.00021369,4]
[365155102,1749501040624,-460.0,0.00021369,4]
[365155104,1749501040634,-1345.98,0.00021369,4]
[365155106,1749501040645,-460.0,0.00021369,4]
[365155108,1749501040657,-460.0,0.00021369,4]
[365155110,1749501040668,-460.0,0.00021369,4]
[365155112,1749501040678,-460.0,0.00021369,4]
[365155115,1749501040689,-2066.19,0.00021369,4]
[365155117,1749501040700,-460.0,0.00021369,4]
[365155119,1749501040710,-460.0,0.00021369,4]
[365155121,1749501040721,-460.0,0.00021369,4]
[365155123,1749501040733,-460.0,0.00021369,4]
[365155125,1749501040744,-460.0,0.00021369,4]
[365155127,1749501040755,-9635.44,0.00021369,4]
[365155129,1749501040766,-225.9898967,0.00021369,4]
[365155130,1749501040777,-1294.16,0.00021369,4]
[365155131,1749501040788,-525.36,0.00021369,4]
[365155133,1749501040798,-715.62,0.00021369,4]
[365155135,1749501040811,-1280.46,0.00021369,4]
[365155137,1749501040822,-205.61300003,0.00021369,4]
[365155140,1749501040842,-380.0,0.00021369,4]
[365155143,1749501040859,-460.0,0.00021369,4]
[365155145,1749501040872,-350.0,0.00021369,4]
[365155147,1749501040888,-1425.37,0.00021369,4]
[365155148,1749501040900,-500.0,0.00021389,2]
[365155149,1749501040912,-881.06,0.000214,2]
[365155151,1749501040926,-1749.9316987,0.00021452,5]
[365155152,1749501040938,-500.0,0.0002155,2]
[365155153,1749501040951,-1749.9316987,0.0002159,5]
[365155154,1749501040964,-677.83231043,0.00021612,2]
[365155155,1749501040976,-213.14,0.00021633,3]
[365155156,1749501040988,-639.42,0.00021633,3]
[365155157,1749501040999,-460.0,0.00021643,4]
[365155158,1749501041011,-460.0,0.00021643,2]
[365155159,1749501041022,-460.0,0.00021643,4]
[365155160,1749501041034,-545.7583,0.00021643,4]
[365155161,1749501041044,-380.0,0.00021643,4]
[365155162,1749501041055,-460.0,0.00021643,4]
[365155163,1749501041066,-460.0,0.00021643,4]
[365155164,1749501041077,-350.82255718,0.00021643,4]
[365155165,1749501041088,-460.0,0.00021643,4]
[365155166,1749501041099,-706.41,0.00021643,4]
[365155167,1749501041253,-992.4,0.00021643,4]
[365155168,1749501041270,-1071.58,0.00021643,4]
[365155169,1749501041283,-460.0,0.00021643,4]
[365155170,1749501041293,-460.0,0.00021643,4]
[365155171,1749501041302,-1603.48,0.00021643,4]
[365155172,1749501041312,-530.48,0.00021643,4]
[365155173,1749501041321,-521.55,0.00021643,4]
[365155174,1749501041331,-649.36,0.00021643,4]
[365155175,1749501041340,-460.0,0.00021643,4]
[365155176,1749501041350,-460.0,0.00021643,4]
[365155177,1749501041359,-460.0,0.00021643,4]
[365155178,1749501041368,-460.0,0.00021643,4]
[365155179,1749501041378,-460.0,0.00021643,4]
[365155180,1749501041388,-460.0,0.00021643,4]
[365155181,1749501041398,-460.0,0.00021643,4]
[365155182,1749501041407,-460.0,0.00021643,4]
[365155183,1749501041417,-625.25,0.00021643,4]
[365155184,1749501041427,-955.51,0.00021643,4]
[365155185,1749501041436,-460.0,0.00021643,4]
[365155186,1749501041446,-1345.98,0.00021643,4]
[365155187,1749501041455,-460.0,0.00021643,4]
[365155188,1749501041465,-460.0,0.00021643,4]
[365155189,1749501041476,-460.0,0.00021643,4]
[365155190,1749501041485,-2066.19,0.00021643,4]
[365155191,1749501041495,-460.0,0.00021643,4]
[365155192,1749501041505,-460.0,0.00021643,4]
[365155193,1749501041514,-460.0,0.00021643,4]
[365155194,1749501041523,-460.0,0.00021643,4]
[365155195,1749501041532,-9635.44,0.00021643,4]
[365155196,1749501041542,-1294.16,0.00021643,4]
[365155197,1749501041553,-525.36,0.00021643,4]
[365155198,1749501041563,-715.62,0.00021643,4]
[365155199,1749501041572,-1280.46,0.00021643,4]
[365155200,1749501041582,-440.0,0.00021643,4]
[365155201,1749501041592,-1425.37,0.00021643,4]
[365155202,1749501041602,-16000.0,0.00021699,2]
[365155203,1749501041612,-2043.27,0.00021726,2]
[365155204,1749501041622,-1749.9316987,0.00021728,5]
[365155205,1749501041631,-160.0,0.0002175,2]
[365155206,1749501041641,-160.0,0.0002175,2]
[365155207,1749501041650,-160.0,0.0002175,2]
[365155208,1749501041660,-842.5625,0.0002175,2]
[365155209,1749501041669,-213.08899333,0.0002175,2]
[365155210,1749501041680,-11856.04170836,0.0002175,2]
[365155211,1749501041689,-834.7738823,0.0002175,2]
[365155212,1749501041699,-160.0,0.0002175,2]
[365155213,1749501041709,-160.0,0.0002175,2]
[365155214,1749501041719,-229.64266968,0.0002175,2]
[365155215,1749501041728,-424.05420114,0.0002175,2]
[365155216,1749501041737,-160.0,0.0002175,2]
[365155217,1749501041748,-160.0,0.00021754,2]
[365155218,1749501041757,-1749.9316987,0.00021866,6]
[365155219,1749501041767,-2952.7664824,0.000219,2]
[365155221,1749501041776,-500.0,0.00021915,2]
[365155222,1749501041786,-504.7392332,0.00021917,2]
[365155223,1749501041795,-460.0,0.00021917,4]
[365155224,1749501041805,-460.0,0.00021917,2]
[365155225,1749501041814,-460.0,0.00021917,4]
[365155226,1749501041823,-460.0,0.00021917,4]
[365155227,1749501041836,-460.0,0.00021917,4]
[365155228,1749501041846,-460.0,0.00021917,4]
[365155229,1749501041856,-706.41,0.00021917,4]
[365155230,1749501041866,-992.4,0.00021917,4]
[365155231,1749501041876,-1071.58,0.00021917,4]
[365155232,1749501041889,-605.12587577,0.00021917,4]
[365155233,1749501041899,-460.0,0.00021917,4]
[365155234,1749501041908,-1603.48,0.00021917,4]
[365155235,1749501041919,-530.48,0.00021917,4]
[365155236,1749501041928,-521.55,0.00021917,4]
[365155237,1749501041938,-649.36,0.00021917,4]
[365155238,1749501041947,-460.0,0.00021917,4]
[365155239,1749501041957,-460.0,0.00021917,4]
[365155240,1749501041968,-460.0,0.00021917,4]
[365155241,1749501041978,-460.0,0.00021917,4]
[365155242,1749501041987,-460.0,0.00021917,4]
[365155243,1749501041997,-625.25,0.00021917,4]
[365155244,1749501042007,-955.51,0.00021917,4]
[365155245,1749501042016,-188.10159536,0.00021917,4]
[365155246,1749501042026,-1345.98,0.00021917,4]
[365155247,1749501042036,-460.0,0.00021917,4]
[365155248,1749501042045,-460.0,0.00021917,4]
[365155249,1749501042055,-460.0,0.00021917,4]
[365155250,1749501042064,-2066.19,0.00021917,4]
[365155251,1749501042074,-460.0,0.00021917,4]
[365155252,1749501042084,-460.0,0.00021917,4]
[365155253,1749501042094,-460.0,0.00021917,4]
[365155254,1749501042103,-460.0,0.00021917,4]
[365155255,1749501042113,-9635.44,0.00021917,4]
[365155256,1749501042123,-1294.16,0.00021917,4]
[365155257,1749501042133,-525.36,0.00021917,4]
[365155258,1749501042143,-715.62,0.00021917,4]
[365155259,1749501042153,-1280.46,0.00021917,4]
[365155260,1749501042162,-1425.37,0.00021917,4]
[365155261,1749501042172,-500.0,0.00021917,4]
[365155262,1749501042182,-500.0,0.00021917,4]
[365155263,1749501042192,-500.0,0.00021917,4]
[365155264,1749501042201,-500.0,0.00021917,4]
[365155265,1749501042211,-709.32,0.00021932,5]
[365155266,1749501042221,-168.0,0.00022,2]
[365155267,1749501042232,-162.0,0.00022,2]
[365155268,1749501042242,-168.0,0.00022,2]
[365155269,1749501042252,-1855.99,0.00022,7]
[365155270,1749501042262,-161.0,0.00022,2]
[365155271,1749501042271,-57463.05665493,0.00022,2]
[365155272,1749501042281,-44235.26098809,0.00022,2]
[365155273,1749501042290,-160.76859129,0.00022,2]
[365155274,1749501042299,-1749.9316987,0.00022003,6]
[365155275,1749501042309,-709.32,0.00022032,7]
[365155276,1749501042319,-1000.0,0.00022098,2]
[365155277,1749501042328,-709.32,0.00022132,3]
[365155278,1749501042338,-1749.9316987,0.00022141,6]
[365155279,1749501042348,-677.83231043,0.00022184,2]
[365155280,1749501042358,-500.0,0.0002219,2]
[365155281,1749501042368,-500.0,0.0002219,2]
[365155282,1749501042378,-500.0,0.0002219,2]
[365155283,1749501042388,-469.16781552,0.0002219,2]
[365155284,1749501042397,-500.0,0.0002219,2]
[365155285,1749501042407,-500.0,0.0002219,2]
[365155286,1749501042416,-500.0,0.0002219,2]
[365155287,1749501042426,-500.0,0.0002219,2]
[365155288,1749501042436,-500.0,0.0002219,2]
[365155289,1749501042445,-500.0,0.0002219,2]
[365155290,1749501042455,-500.0,0.0002219,2]
[365155291,1749501042464,-500.0,0.0002219,2]
[365155292,1749501042474,-269.55790578,0.0002219,2]
[365155293,1749501042485,-500.0,0.0002219,2]
[365155294,1749501042495,-500.0,0.0002219,2]
[365155295,1749501042504,-360.0,0.00022191,4]
[365155296,1749501042514,-460.0,0.00022191,2]
[365155297,1749501042523,-460.0,0.00022191,4]
[365155298,1749501042532,-460.0,0.00022191,4]
[365155299,1749501042542,-460.0,0.00022191,4]
[365155300,1749501042552,-460.0,0.00022191,4]
[365155301,1749501042562,-706.41,0.00022191,4]
[365155302,1749501042572,-992.4,0.00022191,4]
[365155303,1749501042582,-1071.58,0.00022191,4]
[365155304,1749501042591,-1603.48,0.00022191,4]
[365155305,1749501042600,-530.48,0.00022191,4]
[365155306,1749501042609,-521.55,0.00022191,4]
[365155307,1749501042618,-649.36,0.00022191,4]
[365155308,1749501042627,-460.0,0.00022191,4]
[365155309,1749501042635,-480.11,0.00022191,4]
[365155310,1749501042644,-460.0,0.00022191,4]
[365155311,1749501042653,-460.0,0.00022191,4]
[365155312,1749501042663,-625.25,0.00022191,4]
[365155313,1749501042673,-955.51,0.00022191,4]
[365155314,1749501042683,-1345.98,0.00022191,4]
[365155315,1749501042692,-460.0,0.00022191,4]
[365155316,1749501042702,-460.0,0.00022191,4]
[365155317,1749501042712,-341.76301991,0.00022191,4]
[365155318,1749501042721,-2066.19,0.00022191,4]
[365155319,1749501042731,-460.0,0.00022191,4]
[365155320,1749501042742,-460.0,0.00022191,4]
[365155321,1749501042752,-460.0,0.00022191,4]
[365155322,1749501042762,-460.0,0.00022191,4]
[365155323,1749501042772,-9635.44,0.00022191,4]
[365155324,1749501042782,-1294.16,0.00022191,4]
[365155325,1749501042791,-525.36,0.00022191,4]
[365155326,1749501042801,-715.62,0.00022191,4]
[365155327,1749501042811,-1280.46,0.00022191,4]
[365155328,1749501042821,-1425.37,0.00022191,4]
[365155329,1749501042830,-500.0,0.00022191,4]
[365155330,1749501042840,-709.32,0.00022232,5]
[365155331,1749501042850,-16000.0,0.00022247,2]
[365155332,1749501042860,-1749.9316987,0.00022279,6]
[365155333,1749501042870,-709.32,0.00022332,3]
[365155334,1749501042882,-1749.9316987,0.00022417,7]
[365155335,1749501042895,-709.32,0.00022432,7]
[365155336,1749501042905,-460.0,0.00022465,2]
[365155337,1749501042915,-460.0,0.00022465,4]
[365155338,1749501042925,-569.00980209,0.00022465,4]
[365155339,1749501042934,-460.0,0.00022465,4]
[365155340,1749501042944,-460.0,0.00022465,4]
[365155341,1749501042954,-706.41,0.00022465,4]
[365155342,1749501042965,-992.4,0.00022465,4]
[365155343,1749501042976,-1071.58,0.00022465,4]
[365155344,1749501042986,-1603.48,0.00022465,4]
[365155345,1749501042995,-530.48,0.00022465,4]
[365155346,1749501043005,-521.55,0.00022465,4]
[365155347,1749501043015,-649.36,0.00022465,4]
[365155348,1749501043024,-460.0,0.00022465,4]
[365155349,1749501043034,-460.0,0.00022465,4]
[365155350,1749501043043,-460.0,0.00022465,4]
[365155351,1749501043053,-625.25,0.00022465,4]
[365155352,1749501043063,-955.51,0.00022465,4]
[365155353,1749501043073,-1345.98,0.00022465,4]
[365155354,1749501043082,-460.0,0.00022465,4]
[365155355,1749501043091,-460.0,0.00022465,4]
[365155356,1749501043100,-2066.19,0.00022465,4]
[365155357,1749501043110,-460.0,0.00022465,4]
[365155358,1749501043119,-322.59116447,0.00022465,4]
[365155359,1749501043129,-460.0,0.00022465,4]
[365155360,1749501043138,-460.0,0.00022465,4]
[365155361,1749501043147,-9635.44,0.00022465,4]
[365155362,1749501043155,-1294.16,0.00022465,4]
[365155363,1749501043162,-525.36,0.00022465,4]
[365155364,1749501043170,-715.62,0.00022465,4]
[365155365,1749501043180,-1280.46,0.00022465,4]
[365155366,1749501043190,-1425.37,0.00022465,4]
[365155367,1749501043199,-500.0,0.00022465,4]
[365155368,1749501043208,-1688.0,0.00022531,2]
[365155369,1749501043218,-417.14724398,0.00022531,2]
[365155370,1749501043227,-207.4,0.00022531,2]
[365155371,1749501043236,-709.32,0.00022532,7]
[365155372,1749501043245,-213.08899333,0.00022555,7]
[365155373,1749501043254,-1749.9316987,0.00022555,7]
[365155374,1749501043263,-881.06,0.000226,7]
[365155375,1749501043272,-11856.04170836,0.000226,7]
[365155376,1749501043282,-709.32,0.00022632,4]
[365155377,1749501043291,-1749.9316987,0.00022693,7]
[365155378,1749501043301,-4603.657962,0.000227,2]
[365155379,1749501043311,-709.32,0.00022732,2]
[365155380,1749501043320,-460.0,0.00022739,2]
[365155381,1749501043331,-460.0,0.00022739,4]
[365155382,1749501043340,-460.0,0.00022739,4]
[365155383,1749501043350,-460.0,0.00022739,4]
[365155384,1749501043360,-706.41,0.00022739,4]
[365155385,1749501043370,-992.4,0.00022739,4]
[365155386,1749501043379,-1071.58,0.00022739,4]
[365155387,1749501043389,-1603.48,0.00022739,4]
[365155389,1749501043400,-530.48,0.00022739,4]
[365155390,1749501043409,-521.55,0.00022739,4]
[365155391,1749501043419,-649.36,0.00022739,4]
[365155392,1749501043428,-460.0,0.00022739,4]
[365155393,1749501043438,-460.0,0.00022739,4]
[365155394,1749501043448,-460.0,0.00022739,4]
[365155395,1749501043457,-625.25,0.00022739,4]
[365155396,1749501043466,-955.51,0.00022739,4]
[365155397,1749501043475,-1345.98,0.00022739,4]
[365155398,1749501043484,-460.0,0.00022739,4]
[365155399,1749501043493,-460.0,0.00022739,4]
[365155400,1749501043503,-2066.19,0.00022739,4]
[365155401,1749501043512,-460.0,0.00022739,4]
[365155402,1749501043521,-460.0,0.00022739,4]
[365155403,1749501043531,-553.24574625,0.00022739,4]
[365155404,1749501043540,-9635.44,0.00022739,4]
[365155405,1749501043549,-1294.16,0.00022739,4]
[365155406,1749501043558,-525.36,0.00022739,4]
[365155407,1749501043568,-715.62,0.00022739,4]
[365155408,1749501043577,-1280.46,0.00022739,4]
[365155409,1749501043587,-1425.37,0.00022739,4]
[365155410,1749501043597,-677.83231043,0.00022756,2]
[365155411,1749501043607,-16000.0,0.00022795,2]
[365155412,1749501043617,-600.0,0.00022815,2]
[365155413,1749501043627,-500.0,0.00022815,2]
[365155414,1749501043636,-500.0,0.00022815,2]
[365155415,1749501043646,-500.0,0.00022815,2]
[365155416,1749501043656,-1749.9316987,0.00022831,8]
[365155417,1749501043666,-709.32,0.00022832,5]
[365155418,1749501043676,-142549.73078086,0.0002284,2]
[365155419,1749501043685,-709.32,0.00022932,7]
[365155421,1749501043695,-500.0,0.00022956,2]
[365155423,1749501043705,-500.0,0.00022956,2]
[365155425,1749501043714,-500.0,0.00022956,2]
[365155426,1749501043724,-1749.9316987,0.00022969,8]
[365155427,1749501043734,-267.59102629,0.00022979,2]
[365155428,1749501043744,-500.0,0.00022979,2]
[365155429,1749501043755,-1855.99,0.00023,7]
[365155430,1749501043764,-426.28,0.00023003,3]
[365155431,1749501043773,-1546.45,0.00023005,2]
[365155432,1749501043783,-528.94739651,0.00023013,2]
[365155433,1749501043792,-460.0,0.00023013,4]
[365155434,1749501043802,-460.0,0.00023013,4]
[365155435,1749501043815,-460.0,0.00023013,4]
[365155436,1749501043825,-706.41,0.00023013,4]
[365155437,1749501043835,-992.4,0.00023013,4]
[365155438,1749501043845,-1071.58,0.00023013,4]
[365155439,1749501043855,-1603.48,0.00023013,4]
[365155440,1749501043865,-530.48,0.00023013,4]
[365155441,1749501043875,-521.55,0.00023013,4]
[365155442,1749501043887,-649.36,0.00023013,4]
[365155443,1749501043898,-460.0,0.00023013,4]
[365155444,1749501043908,-460.0,0.00023013,4]
[365155445,1749501043917,-460.0,0.00023013,4]
[365155446,1749501043926,-625.25,0.00023013,4]
[365155447,1749501043936,-955.51,0.00023013,4]
[365155448,1749501043946,-1345.98,0.00023013,4]
[365155449,1749501043956,-380.0,0.00023013,4]
[365155450,1749501043965,-460.0,0.00023013,4]
[365155451,1749501043975,-2066.19,0.00023013,4]
[365155452,1749501043985,-460.0,0.00023013,4]
[365155453,1749501043994,-460.0,0.00023013,4]
[365155454,1749501044003,-9635.44,0.00023013,4]
[365155455,1749501044013,-1294.16,0.00023013,4]
[365155456,1749501044022,-525.36,0.00023013,4]
[365155457,1749501044032,-715.62,0.00023013,4]
[365155458,1749501044041,-1280.46,0.00023013,4]
[365155459,1749501044051,-1425.37,0.00023013,4]
[365155460,1749501044060,-709.32,0.00023032,6]
[365155461,1749501044070,-1749.9316987,0.00023107,8]
[365155462,1749501044079,-500.0,0.00023117,2]
[365155463,1749501044088,-709.32,0.00023132,7]
[365155464,1749501044098,-159.89887137,0.00023151,2]
[365155465,1749501044107,-653.0,0.00023154,2]
[365155466,1749501044216,-405.0,0.00023154,2]
[365155467,1749501044226,-405.0,0.00023154,2]
[365155468,1749501044236,-963.0,0.00023154,2]
[365155469,1749501044245,-709.32,0.00023232,5]
[365155470,1749501044255,-2952.7664824,0.00023238,2]
[365155471,1749501044264,-1749.9316987,0.00023245,8]
[365155472,1749501044273,-151.0,0.00023287,7]
[365155473,1749501044283,-157.78072945,0.00023287,2]
[365155474,1749501044292,-460.0,0.00023287,4]
[365155475,1749501044302,-460.0,0.00023287,4]
[365155476,1749501044311,-460.0,0.00023287,4]
[365155477,1749501044321,-706.41,0.00023287,4]
[365155478,1749501044330,-992.4,0.00023287,4]